[Event "Titled Tuesday Blitz July 26 Early 2022"]
[White "Goltseva, Ekaterina"]
[Black "Csonka, Balazs"]
[WhiteFideId "24173770"]
[BlackFideId "742910"]
[WhiteElo "2086"]
[BlackElo "2404"]
[Result "0-1"]
[Round "04"]
[TimeControl "180+1"]
[Date "2022.07.27"]
[WhiteClock "0:00:02"]
[BlackClock "0:00:05"]

1. d4 {[%clk 0:00:48]}  Nf6 {[%clk 0:02:58]} 2. c4 {[%clk 0:00:48]}  g6 {[%clk 0:02:57]} 3. Nc3 {[%clk 0:00:48]}  Bg7 {[%clk 0:02:56]} 4. e4 {[%clk 0:00:49]}  d6 {[%clk 0:02:56]} 5. Nge2 {[%clk 0:00:49]}  c5 {[%clk 0:02:49]} 6. d5 {[%clk 0:00:49]}  b5 {[%clk 0:02:48]} 7. cxb5 {[%clk 0:00:48]}  a6 {[%clk 0:02:48]} 8. Ng3 {[%clk 0:00:46]}  O-O {[%clk 0:02:48]} 9. a4 {[%clk 0:00:45]}  h5 {[%clk 0:02:39]} 10. Be2 {[%clk 0:00:33]}  h4 {[%clk 0:02:37]} 11. Nf1 {[%clk 0:00:33]}  h3 {[%clk 0:02:07]} 12. gxh3 {[%clk 0:00:30]}  axb5 {[%clk 0:01:56]} 13. Bxb5 {[%clk 0:00:30]}  Bxh3 {[%clk 0:01:52]} 14. Rg1 {[%clk 0:00:28]}  Na6 {[%clk 0:01:42]} 15. Ra3 {[%clk 0:00:27]}  Nb4 {[%clk 0:01:38]} 16. Ng3 {[%clk 0:00:19]}  Bg4 {[%clk 0:01:28]} 17. f3 {[%clk 0:00:19]}  Bd7 {[%clk 0:01:28]} 18. Kf1 {[%clk 0:00:15]}  Bxb5+ {[%clk 0:01:22]} 19. axb5 {[%clk 0:00:15]}  Qd7 {[%clk 0:01:20]} 20. Kg2 {[%clk 0:00:15]}  e6 {[%clk 0:01:03]} 21. Bg5 {[%clk 0:00:12]}  Rab8 {[%clk 0:00:43]} 22. Qd2 {[%clk 0:00:09]}  exd5 {[%clk 0:00:40]} 23. exd5 {[%clk 0:00:09]}  Rfe8 {[%clk 0:00:37]} 24. Rd1 {[%clk 0:00:09]}  Re5 {[%clk 0:00:28]} 25. h4 {[%clk 0:00:05]}  Nfxd5 {[%clk 0:00:27]} 26. Nxd5 {[%clk 0:00:04]}  Rxd5 {[%clk 0:00:25]} 27. Qc1 {[%clk 0:00:04]}  Bxb2 {[%clk 0:00:20]} 28. Qxb2 {[%clk 0:00:04]}  Rxd1 {[%clk 0:00:20]} 29. Ne4 {[%clk 0:00:04]}  Nd5 {[%clk 0:00:15]} 30. Bh6 {[%clk 0:00:04]}  f5 {[%clk 0:00:15]} 31. Ng5 {[%clk 0:00:02]}  Rd4 {[%clk 0:00:13]} 32. Ne6 {[%clk 0:00:02]}  Qxe6 {[%clk 0:00:13]} 33. Ra7 {[%clk 0:00:03]}  Qe5 {[%clk 0:00:07]} 34. Bg7 {[%clk 0:00:03]}  Ne3+ {[%clk 0:00:05]} 35. Kg1 {[%clk 0:00:01]}  Qg3+ {[%clk 0:00:05]} 36. Kh1 {[%clk 0:00:02]}  Rd1# {[%clk 0:00:05]} 0-1


[Site "https://www.chess.com"]

[Event "Titled Tuesday Blitz July 26 Early 2022"]
[White "Gracia Alvarez, Gerardo Antonio"]
[Black "Rohith Krishna S"]
[WhiteFideId "5109124"]
[BlackFideId "46617051"]
[WhiteElo "2139"]
[BlackElo "2117"]
[Result "1-0"]
[Round "04"]
[TimeControl "180+1"]
[Date "2022.07.27"]
[WhiteClock "0:00:10"]
[BlackClock "0:00:10"]

1. e4 {[%clk 0:03:00]}  e5 {[%clk 0:02:33]} 2. Nc3 {[%clk 0:03:00]}  Nc6 {[%clk 0:02:33]} 3. Bc4 {[%clk 0:03:00]}  Nf6 {[%clk 0:02:32]} 4. d3 {[%clk 0:02:59]}  Bb4 {[%clk 0:02:32]} 5. Ne2 {[%clk 0:02:59]}  O-O {[%clk 0:02:32]} 6. O-O {[%clk 0:02:57]}  Na5 {[%clk 0:02:33]} 7. Bb3 {[%clk 0:02:55]}  Nxb3 {[%clk 0:02:33]} 8. axb3 {[%clk 0:02:55]}  d6 {[%clk 0:02:33]} 9. Ng3 {[%clk 0:02:53]}  a6 {[%clk 0:02:29]} 10. f4 {[%clk 0:02:48]}  Bg4 {[%clk 0:02:28]} 11. Qe1 {[%clk 0:02:47]}  Re8 {[%clk 0:02:18]} 12. fxe5 {[%clk 0:02:36]}  dxe5 {[%clk 0:02:12]} 13. Kh1 {[%clk 0:02:30]}  h6 {[%clk 0:02:06]} 14. Nf5 {[%clk 0:02:26]}  Bxf5 {[%clk 0:01:57]} 15. Rxf5 {[%clk 0:02:27]}  Bxc3 {[%clk 0:01:58]} 16. bxc3 {[%clk 0:02:25]}  Nd7 {[%clk 0:01:58]} 17. Qg3 {[%clk 0:02:21]}  Re6 {[%clk 0:01:57]} 18. Be3 {[%clk 0:02:14]}  a5 {[%clk 0:01:51]} 19. Raf1 {[%clk 0:02:08]}  Qe7 {[%clk 0:01:50]} 20. c4 {[%clk 0:02:04]}  a4 {[%clk 0:01:49]} 21. bxa4 {[%clk 0:02:04]}  Rxa4 {[%clk 0:01:50]} 22. Qf2 {[%clk 0:01:57]}  Rf6 {[%clk 0:01:44]} 23. h3 {[%clk 0:01:55]}  Ra2 {[%clk 0:01:42]} 24. Qd2 {[%clk 0:01:28]}  Rg6 {[%clk 0:01:28]} 25. Qc3 {[%clk 0:01:24]}  Rf6 {[%clk 0:01:12]} 26. c5 {[%clk 0:01:21]}  Rxf5 {[%clk 0:00:57]} 27. Rxf5 {[%clk 0:01:22]}  Qe6 {[%clk 0:00:37]} 28. Kh2 {[%clk 0:01:13]}  f6 {[%clk 0:00:37]} 29. Rf1 {[%clk 0:00:59]}  Qa6 {[%clk 0:00:23]} 30. Qb3+ {[%clk 0:00:51]}  Kh7 {[%clk 0:00:23]} 31. Qf7 {[%clk 0:00:44]}  Qa4 {[%clk 0:00:22]} 32. Bxh6 {[%clk 0:00:24]}  Kxh6 {[%clk 0:00:21]} 33. Rf5 {[%clk 0:00:16]}  g6 {[%clk 0:00:20]} 34. Rf3 {[%clk 0:00:11]}  Qxc2 {[%clk 0:00:19]} 35. Rg3 {[%clk 0:00:11]}  g5 {[%clk 0:00:17]} 36. h4 {[%clk 0:00:11]}  Qe2 {[%clk 0:00:10]} 37. hxg5+ {[%clk 0:00:10]}  fxg5 {[%clk 0:00:10]} 38. Rh3+ {[%clk 0:00:10]} 1-0


[Site "https://www.chess.com"]

[Event "Titled Tuesday Blitz July 26 Early 2022"]
[White "Harsh Suresh"]
[Black "Kamsky, Gata"]
[WhiteFideId "45018464"]
[BlackFideId "2000024"]
[WhiteElo "2059"]
[BlackElo "2645"]
[Result "0-1"]
[Round "04"]
[TimeControl "180+1"]
[Date "2022.07.26"]
[WhiteClock "0:00:03"]
[BlackClock "0:00:10"]

1. d4 {[%clk 0:02:55]}  f5 {[%clk 0:03:00]} 2. Nf3 {[%clk 0:02:54]}  Nf6 {[%clk 0:03:00]} 3. Bg5 {[%clk 0:02:48]}  Ne4 {[%clk 0:02:58]} 4. Bf4 {[%clk 0:02:47]}  g6 {[%clk 0:02:53]} 5. Nbd2 {[%clk 0:02:46]}  Bg7 {[%clk 0:02:54]} 6. e3 {[%clk 0:02:44]}  d6 {[%clk 0:02:48]} 7. h4 {[%clk 0:02:43]}  Nc6 {[%clk 0:02:38]} 8. h5 {[%clk 0:02:43]}  e5 {[%clk 0:02:37]} 9. dxe5 {[%clk 0:02:35]}  dxe5 {[%clk 0:02:37]} 10. Nxe4 {[%clk 0:02:35]}  Qxd1+ {[%clk 0:02:34]} 11. Rxd1 {[%clk 0:02:34]}  exf4 {[%clk 0:02:27]} 12. Nc3 {[%clk 0:02:16]}  fxe3 {[%clk 0:02:26]} 13. fxe3 {[%clk 0:02:15]}  Bd7 {[%clk 0:02:24]} 14. Bc4 {[%clk 0:02:12]}  O-O-O {[%clk 0:02:22]} 15. h6 {[%clk 0:02:03]}  Bf6 {[%clk 0:01:48]} 16. Kf2 {[%clk 0:02:03]}  Ne5 {[%clk 0:01:45]} 17. Nxe5 {[%clk 0:01:58]}  Bxe5 {[%clk 0:01:44]} 18. Rd3 {[%clk 0:01:58]}  c6 {[%clk 0:01:43]} 19. Rhd1 {[%clk 0:01:57]}  Kc7 {[%clk 0:01:42]} 20. a4 {[%clk 0:01:54]}  Bf6 {[%clk 0:01:39]} 21. Ne2 {[%clk 0:01:39]}  Bg5 {[%clk 0:01:37]} 22. Rh1 {[%clk 0:01:25]}  Rhe8 {[%clk 0:01:36]} 23. Nf4 {[%clk 0:01:25]}  Re4 {[%clk 0:01:32]} 24. b3 {[%clk 0:01:17]}  Bxf4 {[%clk 0:01:31]} 25. exf4 {[%clk 0:01:17]}  Rxf4+ {[%clk 0:01:32]} 26. Kg3 {[%clk 0:01:14]}  Rg4+ {[%clk 0:01:32]} 27. Kf3 {[%clk 0:01:14]}  Re8 {[%clk 0:01:29]} 28. Rhd1 {[%clk 0:01:08]}  Re7 {[%clk 0:01:29]} 29. g3 {[%clk 0:01:02]}  c5 {[%clk 0:01:22]} 30. Bg8 {[%clk 0:00:58]}  Bc6+ {[%clk 0:01:21]} 31. Kf2 {[%clk 0:00:58]}  f4 {[%clk 0:01:21]} 32. gxf4 {[%clk 0:00:39]}  Rg2+ {[%clk 0:01:18]} 33. Kf1 {[%clk 0:00:38]}  Rh2 {[%clk 0:01:19]} 34. R1d2 {[%clk 0:00:28]}  Rxh6 {[%clk 0:01:17]} 35. Bd5 {[%clk 0:00:20]}  Rh4 {[%clk 0:01:13]} 36. Bxc6 {[%clk 0:00:20]}  Kxc6 {[%clk 0:01:13]} 37. Rd6+ {[%clk 0:00:20]}  Kc7 {[%clk 0:01:13]} 38. Rf6 {[%clk 0:00:20]}  Rh3 {[%clk 0:00:54]} 39. Kg2 {[%clk 0:00:20]}  Rc3 {[%clk 0:00:52]} 40. Kf2 {[%clk 0:00:19]}  a6 {[%clk 0:00:39]} 41. a5 {[%clk 0:00:19]}  c4 {[%clk 0:00:34]} 42. b4 {[%clk 0:00:16]}  Rh3 {[%clk 0:00:33]} 43. Kg2 {[%clk 0:00:15]}  Rhe3 {[%clk 0:00:32]} 44. Kf2 {[%clk 0:00:15]}  c3 {[%clk 0:00:32]} 45. Rd5 {[%clk 0:00:13]}  Re2+ {[%clk 0:00:32]} 46. Kf3 {[%clk 0:00:08]}  Rxc2 {[%clk 0:00:30]} 47. Rc5+ {[%clk 0:00:07]}  Kd7 {[%clk 0:00:30]} 48. Rd5+ {[%clk 0:00:06]}  Ke8 {[%clk 0:00:30]} 49. Rc5 {[%clk 0:00:06]}  Rc1 {[%clk 0:00:26]} 50. Rc8+ {[%clk 0:00:03]}  Kd7 {[%clk 0:00:26]} 51. Rff8 {[%clk 0:00:03]}  c2 {[%clk 0:00:22]} 52. Rfd8+ {[%clk 0:00:03]}  Ke6 {[%clk 0:00:21]} 53. Kg2 {[%clk 0:00:03]}  Kf5 {[%clk 0:00:20]} 54. Rd5+ {[%clk 0:00:03]}  Kg4 {[%clk 0:00:20]} 55. Rd2 {[%clk 0:00:03]}  Kxf4 {[%clk 0:00:15]} 56. Rcxc2 {[%clk 0:00:02]}  Rxc2 {[%clk 0:00:15]} 57. Rxc2 {[%clk 0:00:03]}  Re4 {[%clk 0:00:15]} 58. Rc7 {[%clk 0:00:03]}  Rxb4 {[%clk 0:00:15]} 59. Rxh7 {[%clk 0:00:03]}  Rb5 {[%clk 0:00:15]} 60. Rg7 {[%clk 0:00:04]}  g5 {[%clk 0:00:15]} 61. Kf2 {[%clk 0:00:04]}  Rb2+ {[%clk 0:00:15]} 62. Ke1 {[%clk 0:00:04]}  g4 {[%clk 0:00:15]} 63. Kf1 {[%clk 0:00:04]}  Kg3 {[%clk 0:00:15]} 64. Rf7 {[%clk 0:00:03]}  Rb1+ {[%clk 0:00:15]} 65. Ke2 {[%clk 0:00:03]}  Kh3 {[%clk 0:00:16]} 66. Rh7+ {[%clk 0:00:03]}  Kg2 {[%clk 0:00:16]} 67. Rg7 {[%clk 0:00:04]}  g3 {[%clk 0:00:16]} 68. Kd2 {[%clk 0:00:04]}  Rb5 {[%clk 0:00:16]} 69. Ke3 {[%clk 0:00:04]}  Rxa5 {[%clk 0:00:15]} 70. Rxb7 {[%clk 0:00:04]}  Rf5 {[%clk 0:00:15]} 71. Rg7 {[%clk 0:00:03]}  a5 {[%clk 0:00:14]} 72. Ke4 {[%clk 0:00:04]}  Rf2 {[%clk 0:00:13]} 73. Ke3 {[%clk 0:00:04]}  Rf6 {[%clk 0:00:13]} 74. Ra7 {[%clk 0:00:05]}  Kh2 {[%clk 0:00:13]} 75. Rxa5 {[%clk 0:00:05]}  g2 {[%clk 0:00:12]} 76. Rh5+ {[%clk 0:00:05]}  Kg1 {[%clk 0:00:12]} 77. Ke2 {[%clk 0:00:06]}  Rf2+ {[%clk 0:00:11]} 78. Ke1 {[%clk 0:00:05]}  Rf4 {[%clk 0:00:11]} 79. Ke2 {[%clk 0:00:02]}  Rf7 {[%clk 0:00:10]} 80. Rh6 {[%clk 0:00:02]}  Re7+ {[%clk 0:00:11]} 81. Kf3 {[%clk 0:00:02]}  Kf1 {[%clk 0:00:11]} 82. Ra6 {[%clk 0:00:02]}  g1=Q {[%clk 0:00:11]} 83. Ra1+ {[%clk 0:00:02]}  Re1 {[%clk 0:00:11]} 84. Ra2 {[%clk 0:00:01]}  Qe3+ {[%clk 0:00:10]} 85. Kg4 {[%clk 0:00:01]}  Qe6+ {[%clk 0:00:10]} 86. Kg5 {[%clk 0:00:01]}  Qxa2 {[%clk 0:00:11]} 87. Kh4 {[%clk 0:00:02]}  Qd5 {[%clk 0:00:11]} 88. Kg3 {[%clk 0:00:02]}  Qe4 {[%clk 0:00:10]} 89. Kh2 {[%clk 0:00:03]}  Kf2 {[%clk 0:00:10]} 90. Kh3 {[%clk 0:00:03]}  Rh1# {[%clk 0:00:10]} 0-1


[Site "https://www.chess.com"]

[Event "Titled Tuesday Blitz July 26 Early 2022"]
[White "Iljin, Timofey"]
[Black "Guz, Ari"]
[WhiteFideId "14110180"]
[BlackFideId "2825759"]
[WhiteElo "2404"]
[BlackElo "1913"]
[Result "0-1"]
[Round "04"]
[TimeControl "180+1"]
[Date "2022.07.27"]
[WhiteClock "0:00:08"]
[BlackClock "0:00:18"]

1. e4 {[%clk 0:02:58]}  c5 {[%clk 0:02:58]} 2. c3 {[%clk 0:02:48]}  Nf6 {[%clk 0:02:53]} 3. e5 {[%clk 0:02:47]}  Nd5 {[%clk 0:02:53]} 4. d4 {[%clk 0:02:48]}  Nc6 {[%clk 0:02:53]} 5. Nf3 {[%clk 0:02:48]}  cxd4 {[%clk 0:02:52]} 6. cxd4 {[%clk 0:02:49]}  d6 {[%clk 0:02:53]} 7. Bc4 {[%clk 0:02:49]}  Nb6 {[%clk 0:02:53]} 8. Bxf7+ {[%clk 0:02:49]}  Kxf7 {[%clk 0:02:51]} 9. e6+ {[%clk 0:02:49]}  Kg8 {[%clk 0:02:44]} 10. d5 {[%clk 0:02:48]}  Ne5 {[%clk 0:02:40]} 11. Nxe5 {[%clk 0:02:46]}  dxe5 {[%clk 0:02:39]} 12. Nc3 {[%clk 0:02:46]}  Nc4 {[%clk 0:02:06]} 13. O-O {[%clk 0:02:33]}  Nd6 {[%clk 0:02:04]} 14. f4 {[%clk 0:02:31]}  e4 {[%clk 0:02:05]} 15. Qe2 {[%clk 0:02:29]}  Qb6+ {[%clk 0:01:58]} 16. Be3 {[%clk 0:02:22]}  Qa6 {[%clk 0:01:58]} 17. Qg4 {[%clk 0:02:16]}  h5 {[%clk 0:01:55]} 18. Qg6 {[%clk 0:02:13]}  Rh6 {[%clk 0:01:50]} 19. Qg5 {[%clk 0:02:06]}  Bxe6 {[%clk 0:01:25]} 20. dxe6 {[%clk 0:02:03]}  Rxe6 {[%clk 0:01:25]} 21. f5 {[%clk 0:01:58]}  Rf6 {[%clk 0:01:20]} 22. Nd5 {[%clk 0:01:54]}  Nf7 {[%clk 0:01:11]} 23. Nxf6+ {[%clk 0:01:49]}  Qxf6 {[%clk 0:01:06]} 24. Qxf6 {[%clk 0:01:42]}  exf6 {[%clk 0:01:06]} 25. Rac1 {[%clk 0:01:37]}  Bd6 {[%clk 0:01:05]} 26. Rfd1 {[%clk 0:01:35]}  Be5 {[%clk 0:00:59]} 27. b3 {[%clk 0:01:27]}  Nd6 {[%clk 0:00:49]} 28. Bd4 {[%clk 0:00:36]}  Bf4 {[%clk 0:00:48]} 29. Rc5 {[%clk 0:00:35]}  Rd8 {[%clk 0:00:32]} 30. g3 {[%clk 0:00:32]}  Nxf5 {[%clk 0:00:25]} 31. gxf4 {[%clk 0:00:18]}  Nxd4 {[%clk 0:00:24]} 32. Kf2 {[%clk 0:00:14]}  e3+ {[%clk 0:00:18]} 33. Kxe3 {[%clk 0:00:13]}  Nf5+ {[%clk 0:00:19]} 34. Ke2 {[%clk 0:00:13]}  Re8+ {[%clk 0:00:19]} 35. Kf2 {[%clk 0:00:13]}  Ne3 {[%clk 0:00:19]} 36. Rd7 {[%clk 0:00:10]}  Ng4+ {[%clk 0:00:20]} 37. Kg2 {[%clk 0:00:07]}  Re2+ {[%clk 0:00:20]} 38. Kf3 {[%clk 0:00:07]}  Re3+ {[%clk 0:00:19]} 39. Kg2 {[%clk 0:00:07]}  Re2+ {[%clk 0:00:19]} 40. Kf1 {[%clk 0:00:08]}  Rxh2 {[%clk 0:00:17]} 41. Rcc7 {[%clk 0:00:08]}  Ne3+ {[%clk 0:00:18]} 42. Ke1 {[%clk 0:00:07]}  Rg2 {[%clk 0:00:17]} 43. Rd8+ {[%clk 0:00:06]}  Kh7 {[%clk 0:00:17]} 44. Rxb7 {[%clk 0:00:06]}  h4 {[%clk 0:00:17]} 45. Rbb8 {[%clk 0:00:07]}  Kg6 {[%clk 0:00:17]} 46. Rh8 {[%clk 0:00:07]}  Nf5 {[%clk 0:00:17]} 47. Rb7 {[%clk 0:00:05]}  Rxa2 {[%clk 0:00:17]} 48. Rg8 {[%clk 0:00:04]}  h3 {[%clk 0:00:16]} 49. Rh8 {[%clk 0:00:04]}  h2 {[%clk 0:00:17]} 50. Kd1 {[%clk 0:00:04]}  Ra1+ {[%clk 0:00:17]} 51. Kc2 {[%clk 0:00:04]}  h1=Q {[%clk 0:00:15]} 52. Rxh1 {[%clk 0:00:05]}  Rxh1 {[%clk 0:00:15]} 53. Rxa7 {[%clk 0:00:06]}  Rf1 {[%clk 0:00:16]} 54. Ra4 {[%clk 0:00:04]}  Kh5 {[%clk 0:00:15]} 55. Kd3 {[%clk 0:00:04]}  Kg4 {[%clk 0:00:16]} 56. Ra7 {[%clk 0:00:01]}  Rxf4 {[%clk 0:00:15]} 57. Ke2 {[%clk 0:00:01]}  g5 {[%clk 0:00:16]} 58. Ke1 {[%clk 0:00:01]}  Nd4 {[%clk 0:00:16]} 59. Ra1 {[%clk 0:00:01]}  Nxb3 {[%clk 0:00:16]} 60. Ke2 {[%clk 0:00:02]}  Nxa1 {[%clk 0:00:16]} 61. Ke3 {[%clk 0:00:03]}  f5 {[%clk 0:00:16]} 62. Ke2 {[%clk 0:00:04]}  Nc2 {[%clk 0:00:16]} 63. Kd3 {[%clk 0:00:03]}  Nb4+ {[%clk 0:00:16]} 64. Ke2 {[%clk 0:00:04]}  Rf3 {[%clk 0:00:16]} 65. Ke1 {[%clk 0:00:04]}  Nd3+ {[%clk 0:00:16]} 66. Ke2 {[%clk 0:00:05]}  Kf4 {[%clk 0:00:15]} 67. Kd2 {[%clk 0:00:04]}  Ne5 {[%clk 0:00:16]} 68. Kd1 {[%clk 0:00:05]}  g4 {[%clk 0:00:16]} 69. Ke1 {[%clk 0:00:06]}  g3 {[%clk 0:00:17]} 70. Ke2 {[%clk 0:00:07]}  g2 {[%clk 0:00:16]} 71. Kd2 {[%clk 0:00:07]}  g1=Q {[%clk 0:00:16]} 72. Ke2 {[%clk 0:00:08]}  Qg2+ {[%clk 0:00:17]} 73. Ke1 {[%clk 0:00:08]}  Rf1# {[%clk 0:00:18]} 0-1


[Site "https://www.chess.com"]

[Event "Titled Tuesday Blitz July 26 Early 2022"]
[White "Jaskolka, Tomasz"]
[Black "Rustemov, Alexander"]
[WhiteFideId "1170791"]
[BlackFideId "4119002"]
[WhiteElo "2073"]
[BlackElo "2806"]
[Result "0-1"]
[Round "04"]
[TimeControl "180+1"]
[Date "2022.07.26"]
[WhiteClock "0:00:22"]
[BlackClock "0:00:35"]

1. d4 {[%clk 0:03:00]}  g6 {[%clk 0:02:58]} 2. c4 {[%clk 0:02:55]}  Bg7 {[%clk 0:02:58]} 3. g3 {[%clk 0:02:55]}  c5 {[%clk 0:02:51]} 4. d5 {[%clk 0:02:56]}  b5 {[%clk 0:02:46]} 5. cxb5 {[%clk 0:02:53]}  Qa5+ {[%clk 0:02:46]} 6. Qd2 {[%clk 0:02:48]}  Qxb5 {[%clk 0:02:44]} 7. Nc3 {[%clk 0:02:48]}  Qa5 {[%clk 0:02:41]} 8. Bg2 {[%clk 0:02:48]}  d6 {[%clk 0:02:41]} 9. Nf3 {[%clk 0:02:45]}  Nf6 {[%clk 0:02:40]} 10. O-O {[%clk 0:02:45]}  O-O {[%clk 0:02:40]} 11. b3 {[%clk 0:02:33]}  Nbd7 {[%clk 0:02:18]} 12. Bb2 {[%clk 0:02:33]}  Ba6 {[%clk 0:02:17]} 13. Rfe1 {[%clk 0:02:30]}  Rab8 {[%clk 0:02:15]} 14. e4 {[%clk 0:01:55]}  Ng4 {[%clk 0:02:14]} 15. Na4 {[%clk 0:01:40]}  Qxd2 {[%clk 0:02:09]} 16. Nxd2 {[%clk 0:01:41]}  Nb6 {[%clk 0:01:56]} 17. Bxg7 {[%clk 0:01:37]}  Kxg7 {[%clk 0:01:57]} 18. Nxb6 {[%clk 0:01:36]}  axb6 {[%clk 0:01:54]} 19. f4 {[%clk 0:01:32]}  b5 {[%clk 0:01:36]} 20. h3 {[%clk 0:01:30]}  Nf6 {[%clk 0:01:36]} 21. e5 {[%clk 0:01:31]}  Nd7 {[%clk 0:01:35]} 22. exd6 {[%clk 0:01:31]}  exd6 {[%clk 0:01:35]} 23. Ne4 {[%clk 0:01:30]}  Rb6 {[%clk 0:01:32]} 24. Ng5 {[%clk 0:01:03]}  h6 {[%clk 0:01:29]} 25. Re7 {[%clk 0:01:03]}  hxg5 {[%clk 0:01:25]} 26. Rxd7 {[%clk 0:01:03]}  gxf4 {[%clk 0:01:23]} 27. gxf4 {[%clk 0:01:04]}  Bc8 {[%clk 0:01:15]} 28. Rc7 {[%clk 0:01:02]}  b4 {[%clk 0:01:11]} 29. Re1 {[%clk 0:00:44]}  Rb7 {[%clk 0:01:04]} 30. Ree7 {[%clk 0:00:36]}  Rxc7 {[%clk 0:01:03]} 31. Rxc7 {[%clk 0:00:37]}  Bf5 {[%clk 0:01:03]} 32. Rc6 {[%clk 0:00:30]}  Rd8 {[%clk 0:01:03]} 33. Bf1 {[%clk 0:00:31]}  Kf6 {[%clk 0:01:00]} 34. Kf2 {[%clk 0:00:30]}  Ke7 {[%clk 0:00:58]} 35. Bb5 {[%clk 0:00:30]}  Rb8 {[%clk 0:00:47]} 36. Rc7+ {[%clk 0:00:30]}  Kd8 {[%clk 0:00:45]} 37. Rxf7 {[%clk 0:00:23]}  Rxb5 {[%clk 0:00:45]} 38. h4 {[%clk 0:00:24]}  Bb1 {[%clk 0:00:43]} 39. h5 {[%clk 0:00:23]}  gxh5 {[%clk 0:00:42]} 40. Ke3 {[%clk 0:00:22]}  Bxa2 {[%clk 0:00:36]} 41. Ke4 {[%clk 0:00:22]}  Bxb3 {[%clk 0:00:36]} 42. Rh7 {[%clk 0:00:22]}  Bc2+ {[%clk 0:00:35]} 0-1


[Site "https://www.chess.com"]

[Event "Titled Tuesday Blitz July 26 Early 2022"]
[White "Koellner, Ruben Gideon"]
[Black "Andreikin, Dmitry"]
[WhiteFideId "12993093"]
[BlackFideId "4158814"]
[WhiteElo "2568"]
[BlackElo "2736"]
[Result "0-1"]
[Round "04"]
[TimeControl "180+1"]
[Date "2022.07.26"]
[WhiteClock "0:00:16"]
[BlackClock "0:01:49"]

1. d4 {[%clk 0:02:56]}  Nf6 {[%clk 0:02:59]} 2. Bg5 {[%clk 0:02:56]}  g6 {[%clk 0:02:58]} 3. Bxf6 {[%clk 0:02:56]}  exf6 {[%clk 0:02:59]} 4. g3 {[%clk 0:02:57]}  d5 {[%clk 0:02:59]} 5. Bg2 {[%clk 0:02:57]}  c6 {[%clk 0:02:59]} 6. e3 {[%clk 0:02:58]}  Bd6 {[%clk 0:02:58]} 7. Ne2 {[%clk 0:02:58]}  f5 {[%clk 0:02:53]} 8. b3 {[%clk 0:02:55]}  Nd7 {[%clk 0:02:51]} 9. c4 {[%clk 0:02:54]}  Nf6 {[%clk 0:02:49]} 10. Nbc3 {[%clk 0:02:52]}  Be6 {[%clk 0:02:44]} 11. Qd3 {[%clk 0:02:44]}  Ne4 {[%clk 0:02:41]} 12. cxd5 {[%clk 0:02:25]}  cxd5 {[%clk 0:02:40]} 13. O-O {[%clk 0:02:10]}  O-O {[%clk 0:02:39]} 14. Nf4 {[%clk 0:02:06]}  Bxf4 {[%clk 0:02:34]} 15. exf4 {[%clk 0:01:35]}  Qa5 {[%clk 0:02:32]} 16. Rac1 {[%clk 0:01:32]}  Rfc8 {[%clk 0:02:29]} 17. Na4 {[%clk 0:01:25]}  Bd7 {[%clk 0:02:29]} 18. Rfd1 {[%clk 0:00:57]}  Bxa4 {[%clk 0:02:25]} 19. bxa4 {[%clk 0:00:58]}  Qxa4 {[%clk 0:02:26]} 20. Bxe4 {[%clk 0:00:53]}  fxe4 {[%clk 0:02:25]} 21. Qb3 {[%clk 0:00:54]}  Qxb3 {[%clk 0:02:23]} 22. axb3 {[%clk 0:00:54]}  b6 {[%clk 0:02:18]} 23. Kf1 {[%clk 0:00:47]}  a5 {[%clk 0:02:13]} 24. Ke2 {[%clk 0:00:44]}  Kf8 {[%clk 0:02:13]} 25. f3 {[%clk 0:00:33]}  exf3+ {[%clk 0:02:11]} 26. Kxf3 {[%clk 0:00:33]}  Ke7 {[%clk 0:02:11]} 27. Re1+ {[%clk 0:00:32]}  Kd6 {[%clk 0:02:11]} 28. Kg4 {[%clk 0:00:31]}  h6 {[%clk 0:01:58]} 29. f5 {[%clk 0:00:30]}  Rxc1 {[%clk 0:01:55]} 30. Rxc1 {[%clk 0:00:30]}  b5 {[%clk 0:01:56]} 31. h4 {[%clk 0:00:13]}  a4 {[%clk 0:01:48]} 32. bxa4 {[%clk 0:00:14]}  Rxa4 {[%clk 0:01:47]} 33. Rb1 {[%clk 0:00:13]}  Rxd4+ {[%clk 0:01:47]} 34. Kf3 {[%clk 0:00:14]}  b4 {[%clk 0:01:47]} 35. fxg6 {[%clk 0:00:14]}  fxg6 {[%clk 0:01:47]} 36. Ra1 {[%clk 0:00:15]}  b3 {[%clk 0:01:47]} 37. Ra6+ {[%clk 0:00:14]}  Kc5 {[%clk 0:01:47]} 38. Ra5+ {[%clk 0:00:14]}  Kb4 {[%clk 0:01:47]} 39. Ra8 {[%clk 0:00:14]}  b2 {[%clk 0:01:47]} 40. Rb8+ {[%clk 0:00:14]}  Kc3 {[%clk 0:01:48]} 41. Rc8+ {[%clk 0:00:15]}  Rc4 {[%clk 0:01:48]} 42. Rb8 {[%clk 0:00:16]}  Rb4 {[%clk 0:01:49]} 0-1


[Site "https://www.chess.com"]